bitfinex/quotes_SOLUSD_20241209
["timestamp","ask_amount","ask_price","bid_price","bid_amount"]
[1733780842574,5.7099,218.92,218.74,21.97371916]
[1733780842766,20.0,218.89,218.75,0.12549]
[1733780843081,20.0,218.89,218.74,21.97371916]
[1733780843582,20.0,218.85,218.72,21.97371916]
[1733780843945,20.0,218.85,218.73,0.12549]
[1733780844448,5.7119,218.84,218.73,0.12549]
[1733780844668,5.7119,218.84,218.72,21.97371916]
[1733780844669,20.0,218.81,218.74,21.97371916]
[1733780845055,5.7119,218.84,218.76,21.97371916]
[1733780845449,5.7119,218.84,218.74,21.97371916]
[1733780845647,11.4217,218.88,218.75,0.12549]
[1733780846144,20.0,218.85,218.75,0.12549]
[1733780846560,17.1279,218.94,218.79,0.12549]
[1733780846889,17.1279,218.94,218.8,21.97371916]
[1733780847079,5.7093,218.94,218.83,0.12549]
[1733780847368,5.7093,218.94,218.82,21.61309916]
[1733780847579,5.7093,218.94,218.84,21.97371916]
[1733780849176,5.7093,218.94,218.86,21.97371916]
[1733780850274,5.7093,218.94,218.84,22.09920916]
[1733780850472,5.708,218.99,218.88,21.97371916]
[1733780850686,92.97871772,219.09,219.07,30.12549]
[1733780850687,9.77866904,219.08,219.07,30.12549]
[1733780850982,8.44806114,219.09,219.07,32.09920916]
[1733780851185,8.44806114,219.09,219.02,10.0]
[1733780851186,8.44806114,219.09,219.03,22.65802359]
[1733780851351,8.44806114,219.09,218.99,7.62497118]
[1733780851352,8.44806114,219.09,218.99,21.97371916]
[1733780851678,8.44806114,219.09,218.86,21.97371916]
[1733780851679,0.12549,219.07,218.86,21.97371916]
[1733780851879,0.12549,219.07,218.84,21.97371916]
[1733780852078,0.12549,219.03,218.82,10.550553]
[1733780852375,20.0,219.05,218.84,21.97371916]
[1733780852575,23.902374,219.0,218.84,21.97371916]
[1733780852896,20.0,218.93,218.78,0.68514105]
[1733780853058,0.12549,219.0,218.78,0.68514105]
[1733780853059,20.0,218.89,218.78,21.97371916]
[1733780853379,20.0,218.99,218.85,21.97371916]
[1733780853678,0.12549,218.97,218.85,21.97371916]
[1733780853877,0.12549,218.97,218.81,21.97371916]
[1733780854077,20.0,218.88,218.77,21.97371916]
[1733780854383,20.0,218.88,218.81,21.97371916]
[1733780854559,12.243,219.0,218.83,21.97371916]
[1733780854763,20.0,218.92,218.83,21.97371916]
[1733780854978,20.0,218.92,218.7,36.64471916]
[1733780854979,4.5664,218.99,218.86,0.12549]
[1733780855158,4.5664,218.99,218.85,21.97371916]
[1733780855576,4.5664,218.99,218.79,0.68518999]
[1733780855577,4.5664,218.99,218.83,21.97371916]
[1733780855776,18.2614,219.04,218.89,21.97371916]
[1733780855777,22.8269,219.04,218.89,21.97371916]
[1733780855970,22.8269,219.04,218.85,21.97371916]
[1733780856172,22.8269,219.04,218.86,0.12549]
[1733780856389,22.8269,219.04,218.89,21.97371916]
[1733780856760,4.5655,219.04,218.9,0.12549]
[1733780857059,4.5655,219.04,218.9,0.25098]
[1733780857275,4.5645,219.08,218.94,0.12549]
[1733780857582,4.5645,219.08,218.95,21.97371916]
[1733780857786,6.5364498,219.08,218.96,0.25098]
[1733780857978,6.5364498,219.08,218.95,21.97371916]
[1733780858284,1.9719498,219.08,218.98,0.12549]
[1733780858483,13.6905,219.13,218.95,21.97371916]
[1733780858682,13.6905,219.13,218.93,22.65846563]
[1733780858985,0.12549,219.12,218.94,0.12549]
[1733780859188,0.12549,219.12,218.92,0.12549]
[1733780859562,20.0,219.1,218.92,0.12549]
[1733780859889,20.0,219.09,218.91,21.97371916]
[1733780860086,0.12549,219.08,218.87,21.97371916]
[1733780860288,0.12549,219.08,218.83,21.97371916]
[1733780860289,0.12549,219.01,218.83,21.97371916]
[1733780860584,20.25098,219.01,218.81,21.97371916]
[1733780860782,20.0,218.97,218.79,21.97371916]
[1733780860986,23.776884,218.92,218.77,21.97371916]
[1733780861285,23.776884,218.96,218.77,21.97371916]
[1733780861286,20.0,218.85,218.77,21.97371916]
[1733780862059,23.776884,218.84,218.73,21.97371916]
[1733780862288,20.0,218.81,218.73,21.97371916]
[1733780862473,20.0,218.77,218.67,21.97371916]
[1733780862991,20.0,218.77,218.65,21.97371916]
[1733780863366,4.5712,218.76,218.65,21.97371916]
[1733780863599,4.5712,218.76,218.66,21.97371916]
[1733780863776,4.5712,218.76,218.64,21.97371916]
[1733780864165,23.776884,218.75,218.64,21.97371916]
[1733780864372,20.0,218.72,218.64,21.97371916]
[1733780864681,4.5712,218.76,218.64,21.97371916]
[1733780865684,20.0,218.72,218.6,21.97371916]
[1733780865888,20.0,218.72,218.58,0.68583003]
[1733780865889,20.0,218.72,218.58,22.65954919]
[1733780866271,4.5712,218.76,218.58,21.97371916]
[1733780866272,20.0,218.68,218.58,21.97371916]
[1733780866471,20.0,218.68,218.56,21.97371916]
[1733780867071,20.0,218.68,218.58,21.97371916]
[1733780867271,20.0,218.68,218.61,21.92477819]
[1733780867470,20.0,218.7,218.61,21.92477819]
[1733780867673,20.0,218.7,218.63,21.92477819]
[1733780867878,20.0,218.7,218.61,0.68593308]
[1733780867879,20.0,218.7,218.61,21.92477819]
[1733780868076,2.05931596,218.76,218.63,21.92477819]
[1733780868371,20.0,218.74,218.63,21.92477819]
[1733780868787,20.0,218.74,218.64,0.12549]
[1733780868993,10.08510509,218.77,218.63,21.92477819]
[1733780869173,14.65610509,218.77,218.63,21.92477819]
[1733780869701,4.5702,218.81,218.69,21.92477819]
[1733780869879,4.5693,218.85,218.73,35.5937995]
[1733780870295,4.5693,218.85,218.67,35.7192895]
[1733780870595,4.5693,218.85,218.69,35.5937995]
[1733780870889,4.5693,218.85,218.67,35.5937995]
[1733780871096,4.5697,218.83,218.65,35.5937995]
[1733780871277,23.776884,218.82,218.65,35.5937995]
[1733780871589,20.0,218.79,218.65,35.5937995]
[1733780871802,20.0,218.75,218.65,35.5937995]
[1733780872483,4.5716,218.74,218.64,0.12549]
[1733780872671,4.5716,218.74,218.65,35.5937995]
[1733780873281,24.5716,218.74,218.65,35.5937995]
[1733780873796,20.0,218.75,218.65,35.5937995]
[1733780874175,20.0,218.75,218.64,0.25098]
[1733780874378,20.0,218.75,218.65,35.5937995]
[1733780874906,20.0,218.71,218.61,35.5937995]
[1733780875089,20.0,218.71,218.59,35.5937995]
[1733780875280,20.0,218.69,218.57,35.5937995]
[1733780875802,28.349684,218.68,218.57,35.5937995]
[1733780875975,20.0,218.65,218.57,35.5937995]
[1733780876496,4.5728,218.68,218.57,35.5937995]
[1733780876679,20.0,218.64,218.53,36.27979988]
[1733780877882,4.5739,218.63,218.53,36.27979988]
[1733780878085,4.5739,218.63,218.51,35.5937995]
[1733780879108,4.5739,218.63,218.52,0.12549]
[1733780879309,20.0,218.65,218.54,0.12549]
[1733780879602,20.0,218.65,218.56,0.12549]
[1733780879988,20.0,218.66,218.56,0.25098]
[1733780880291,4.5731,218.67,218.56,0.25098]
[1733780880497,4.5731,218.67,218.56,0.12549]
[1733780880812,13.7193,218.67,218.54,0.12549]
[1733780881009,13.7193,218.67,218.47,35.5937995]
[1733780881180,23.776884,218.66,218.45,35.5937995]
[1733780881507,23.776884,218.64,218.44,0.5505538]
[1733780881709,20.0,218.57,218.44,0.5505538]
[1733780881909,20.0,218.57,218.46,0.12549]
[1733780882084,20.0,218.57,218.46,35.5937995]
[1733780883016,20.0,218.62,218.49,0.12549]
[1733780883384,20.0,218.62,218.49,0.25098]
[1733780883586,4.5743,218.61,218.49,0.25098]
[1733780883804,20.0,218.57,218.46,35.5937995]
[1733780884607,20.0,218.52,218.44,0.5505538]
[1733780885210,23.776884,218.51,218.44,0.5505538]
[1733780885522,4.5772,218.47,218.44,0.5505538]
[1733780885809,4.5772,218.47,218.44,5.38e-05]
[1733780886413,20.0,218.43,218.3,35.5937995]
[1733780886609,20.0,218.39,218.3,35.5937995]
[1733780887017,20.0,218.39,218.32,35.5937995]
[1733780887320,23.776884,218.43,218.32,35.5937995]
[1733780887528,2.01415826,218.48,218.32,35.5937995]
[1733780887816,23.776884,218.48,218.32,35.5937995]
[1733780888003,20.0,218.41,218.31,35.5937995]
[1733780888201,20.0,218.41,218.33,35.5937995]
[1733780888894,4.5782,218.43,218.34,0.12549]
[1733780889112,4.5782,218.43,218.33,35.5937995]
[1733780889324,4.5782,218.43,218.33,35.71229599]
[1733780889929,20.0,218.39,218.3,21.98272555]
[1733780890637,20.0,218.38,218.28,21.98272555]
[1733780891119,20.0,218.38,218.32,21.98272555]
[1733780891511,20.0,218.38,218.3,21.98272555]
[1733780891708,24.5792,218.38,218.3,21.98272555]
[1733780892033,24.5792,218.38,218.32,21.98272555]
[1733780892324,24.5792,218.38,218.3,21.98272555]
[1733780892698,43.776884,218.37,218.27,21.98272555]
[1733780892901,24.58,218.34,218.25,21.98272555]
[1733780893125,24.58,218.34,218.24,21.98272555]
[1733780893507,24.58,218.34,218.25,21.98272555]
[1733780893906,24.58,218.34,218.24,21.98272555]
[1733780894109,24.58,218.34,218.22,0.5505538]
[1733780894110,24.58,218.34,218.25,21.98272555]
[1733780894309,20.0,218.3,218.25,21.98272555]
[1733780894913,4.5804,218.32,218.25,21.98272555]
[1733780895118,4.5804,218.32,218.23,21.98272555]
[1733780895326,4.5804,218.32,218.05,18.34869]
[1733780895327,23.902374,218.25,218.05,18.34869]
[1733780895499,90.5115,218.3,218.05,18.34869]
[1733780895500,23.776884,218.13,218.05,18.34869]
[1733780895703,20.0,218.1,217.98,21.98272555]
[1733780895930,20.0,218.1,218.01,21.98272555]
[1733780896107,12.9843,218.24,218.01,21.98272555]
[1733780896108,20.0,218.17,218.01,21.98272555]
[1733780896311,4.585,218.1,218.0,14.03327935]
[1733780896505,20.0,218.2,218.08,21.98272555]
[1733780896718,20.0,218.2,218.11,21.98272555]
[1733780897024,20.0,218.2,218.12,0.12549]
[1733780897322,20.0,218.16,217.99,21.98272555]
[1733780897507,13.2157,218.19,218.1,21.98272555]
[1733780897704,20.0,218.16,218.1,21.98272555]
[1733780897904,20.0,218.16,217.97,18.354082]
[1733780897905,20.0,218.16,218.06,21.98272555]
[1733780898133,20.0,218.16,218.04,0.68756588]
[1733780898134,20.0,218.16,218.08,21.98272555]
[1733780898304,20.0,218.16,218.06,22.670432]
[1733780898501,20.0,218.16,218.02,21.98272555]
[1733780898745,20.0,218.16,218.0,22.6702834]
[1733780898908,20.0,218.12,217.98,21.98272555]
[1733780899315,20.0,218.12,217.98,22.04379358]
[1733780899540,20.0,218.12,217.99,0.68785681]
[1733780899725,24.584,218.15,217.99,0.68785681]
[1733780899908,4.584,218.15,218.03,35.81464504]
[1733780900209,13.2157,218.19,218.1,0.12549]
[1733780900431,7.8074,218.23,218.12,0.12549]
[1733780900636,4.5825,218.22,218.05,0.68746274]
[1733780900831,0.12549,218.21,218.0,36.5023395]
[1733780901035,10.0,218.2,217.97,0.68781816]
[1733780901247,0.12549,218.21,217.98,35.81464504]
[1733780901466,20.0,218.19,218.0,35.81464504]
[1733780901738,43.776884,218.18,218.0,35.81464504]
[1733780901940,43.776884,218.18,217.93,10.68780945]
[1733780902116,43.776884,218.18,217.99,35.81464504]
[1733780902313,24.5834,218.18,218.01,35.94013504]
[1733780902512,7.8074,218.23,218.07,35.81464504]
[1733780902807,9.75548073,218.23,218.08,0.12549]
[1733780903013,14.33788073,218.23,218.02,0.68768446]
[1733780903211,14.33788073,218.23,218.03,35.81464504]
[1733780903443,23.50248073,218.23,218.05,0.25098]
[1733780903617,12.3898,218.23,218.1,0.25098]
[1733780903817,12.3898,218.23,218.1,0.12549]
[1733780904015,12.3898,218.23,218.03,36.50219478]
[1733780904436,14.35241716,218.23,218.06,0.12549]
[1733780904966,20.0,218.2,218.01,36.50222737]
[1733780905248,4.5831,218.19,218.01,36.50222737]
[1733780905548,23.776884,218.18,218.02,0.12549]
[1733780905745,20.0,218.11,217.99,35.81464504]
[1733780906037,20.0,218.11,218.0,0.68778044]
[1733780906258,24.5831,218.19,218.0,35.81464504]
[1733780906461,24.5831,218.19,218.03,0.12549]
[1733780906462,23.776884,218.18,218.03,0.12549]
[1733780906759,20.0,218.11,218.0,35.81464504]
[1733780907060,20.0,218.11,218.03,0.12549]
[1733780907281,4.5841,218.15,218.03,0.12549]
[1733780907952,4.5841,218.15,218.03,0.25098]
[1733780908170,4.5832,218.19,218.06,35.94013504]
[1733780908382,4.5832,218.19,218.1,35.94013504]
[1733780908587,12.3653,218.26,218.16,36.06562504]
[1733780908878,12.3653,218.26,218.11,0.81276082]
[1733780909060,12.3653,218.26,218.13,35.81464504]
[1733780909239,4.5819,218.25,218.11,0.12549]
[1733780909446,4.5819,218.25,218.09,0.12549]
[1733780909759,4.5819,218.25,218.08,0.12549]
[1733780909956,9.1638,218.25,218.04,35.81464504]
[1733780910148,8.3136,218.22,218.05,0.68763978]
[1733780910352,20.0,218.15,218.01,35.81464504]
[1733780910655,20.0,218.15,218.06,35.81464504]
[1733780911164,20.0,218.19,218.07,0.12549]
[1733780911464,20.0,218.19,218.05,0.12549]
[1733780911649,20.0,218.19,218.05,36.06562504]
[1733780911969,4.5833,218.18,218.05,0.25098]
[1733780912174,4.5833,218.18,218.05,0.93861367]
[1733780912587,4.5833,218.18,218.05,35.81464504]
[1733780912880,4.5833,218.18,218.02,35.81464504]
[1733780913085,4.5833,218.18,218.04,0.12549]
[1733780913269,4.5833,218.18,218.08,0.12549]
[1733780913565,8.3136,218.22,218.13,35.81464504]
[1733780913780,8.3136,218.22,218.14,0.12549]
[1733780914159,16.947,218.26,218.14,0.25098]
[1733780914472,12.3653,218.26,218.17,0.12549]
[1733780914669,8.1258,218.29,218.2,35.81464504]
[1733780914858,8.1258,218.29,218.18,35.81464504]
[1733780915170,8.1258,218.29,218.19,0.25098]
[1733780915341,8.1258,218.29,218.22,35.81464504]
[1733780915663,80.0,218.47,218.11,10.0]
[1733780915664,12.384,218.4,218.29,0.25098]
[1733780915859,12.384,218.4,218.29,35.81464504]
[1733780916066,16.9627,218.4,218.27,35.81464504]
[1733780916255,16.9627,218.4,218.23,35.81464504]
[1733780916567,16.9627,218.4,218.16,34.3326]
[1733780916568,16.9627,218.4,218.25,35.81464504]
[1733780917075,0.12549,218.39,218.23,35.81464504]
[1733780917282,0.12549,218.39,218.21,35.81464504]
[1733780917447,20.0,218.37,218.21,35.81464504]
[1733780917768,4.5795,218.36,218.21,35.81464504]
[1733780918073,23.776884,218.35,218.21,35.81464504]
[1733780918249,20.0,218.32,218.25,35.81464504]
[1733780918451,20.0,218.32,218.21,0.68714439]
[1733780918452,20.0,218.32,218.27,35.81464504]
[1733780918770,0.12549,218.31,218.07,10.0]
[1733780918953,0.25098,218.27,218.12,35.81464504]
[1733780919266,20.0,218.24,218.08,35.79684908]
[1733780919469,0.12549,218.23,218.08,35.79684908]
[1733780919669,20.0,218.16,218.08,35.79684908]
[1733780919971,20.0,218.12,218.06,35.79684908]
[1733780920345,20.0,218.12,218.05,22.03573787]
[1733780921476,4.5839,218.16,218.07,22.03573787]
[1733780921768,20.0,218.18,218.09,22.03573787]
[1733780922584,4.583,218.2,218.01,0.687672]
[1733780922753,4.583,218.2,218.06,22.03573787]
[1733780922949,20.0,218.16,218.06,22.03573787]
[1733780923149,23.776884,218.15,218.06,22.03573787]
[1733780923372,4.5842,218.14,218.06,22.03573787]
[1733780923672,23.776884,218.13,218.04,22.03573787]
[1733780924253,23.776884,218.13,218.02,22.03573787]
[1733780924462,20.0,218.1,218.02,22.03573787]
[1733780925366,20.0,218.09,218.02,22.03573787]
[1733780926276,4.5854,218.08,217.98,22.03573787]
[1733780926483,23.776884,218.07,217.96,22.03573787]
[1733780926653,20.0,218.04,217.94,22.03573787]
[1733780927169,23.776884,218.03,217.87,0.68807126]
[1733780927353,23.776884,218.03,217.91,22.03573787]
[1733780927556,4.5867,218.02,217.91,22.03573787]
[1733780927760,4.5867,218.02,217.93,22.03573787]
[1733780927955,20.0,218.05,217.95,22.03573787]
[1733780928269,4.5859,218.06,217.97,22.03573787]
[1733780928592,2.02570514,218.18,218.05,22.03573787]
[1733780928887,19.84387757,218.19,218.07,22.03573787]
[1733780929073,19.84387757,218.19,218.06,22.03573787]
[1733780929382,19.84387757,218.19,217.96,10.0]
[1733780929383,17.8363,218.19,218.08,22.03573787]
[1733780929592,17.8363,218.19,218.06,22.03573787]
[1733780929760,17.8363,218.19,218.08,22.03573787]
[1733780929964,17.8363,218.19,218.06,22.03573787]
[1733780930185,23.776884,218.18,218.06,22.03573787]
[1733780930361,0.25098,218.17,217.95,0.68778076]
[1733780930564,0.25098,218.17,218.0,22.03573787]
[1733780930903,23.776884,218.18,218.02,22.03573787]
[1733780931196,0.25098,218.17,218.02,22.04232984]
[1733780931490,20.0,218.11,218.02,22.04232984]
[1733780931855,20.0,218.11,218.02,35.81713192]
[1733780932298,4.5837,218.16,218.04,35.81713192]
[1733780932528,4.5837,218.16,218.02,35.81713192]
[1733780932789,13.7512,218.16,218.02,35.81713192]
[1733780932994,13.7512,218.16,218.0,35.81713192]
[1733780933655,23.776884,218.15,218.02,35.81713192]
[1733780933851,23.776884,218.11,218.0,35.81713192]
[1733780934088,70.0,218.23,217.87,10.0]
[1733780934089,23.776884,218.07,217.95,35.81713192]
[1733780934455,23.776884,218.07,218.01,35.81713192]
[1733780934690,20.0,218.08,218.01,35.81713192]
[1733780934893,20.0,218.08,217.91,10.68789264]
[1733780934894,4.5842,218.14,218.05,35.81713192]
[1733780935401,4.5842,218.14,218.03,35.81713192]
[1733780935563,4.5842,218.14,218.05,35.81713192]
[1733780936380,4.5842,218.14,218.03,35.81713192]
[1733780936789,24.5842,218.14,218.01,35.81713192]
[1733780936998,20.0,218.13,217.97,35.81713192]
[1733780937200,20.0,218.09,217.97,35.81713192]
[1733780937504,23.776884,218.04,217.95,35.81713192]
[1733780938090,23.776884,218.06,217.97,35.81713192]
[1733780938290,20.0,218.13,217.99,35.81713192]
[1733780938498,20.0,218.09,217.97,35.81713192]
[1733780938675,23.776884,218.08,217.97,35.81713192]
[1733780939098,20.0,218.09,217.97,35.81713192]
[1733780939312,23.776884,218.08,217.97,35.81713192]
[1733780939771,20.0,218.05,217.95,35.81713192]
[1733780939976,20.0,218.05,217.93,35.81713192]
[1733780940281,4.5856,218.07,217.99,35.81713192]
[1733780940495,4.5856,218.07,217.97,35.81713192]
[1733780940677,4.5856,218.07,217.95,35.81713192]
[1733780940997,12.963,218.05,217.93,35.81713192]
[1733780941376,12.963,218.05,217.97,35.81713192]
[1733780941586,4.585,218.11,218.01,35.81713192]
[1733780942803,20.0,218.09,217.99,35.81713192]
[1733780943206,28.362384,218.08,217.97,35.81713192]
[1733780943711,17.5477,218.12,218.03,35.81713192]
[1733780943916,17.5477,218.12,217.97,0.68792563]
[1733780943917,12.2955,218.18,218.07,35.81713192]
[1733780944113,4.5835,218.17,218.07,35.81713192]
[1733780944326,24.922,218.31,218.13,35.81713192]
[1733780944983,24.922,218.31,218.11,35.81713192]
[1733780945185,43.274855,218.31,218.13,35.81713192]
[1733780945513,43.274855,218.31,218.23,35.81713192]
[1733780946021,43.274855,218.31,218.01,70.0]
[1733780946022,34.0832,218.31,218.13,35.81713192]
[1733780946187,20.0,218.3,218.09,35.81713192]
[1733780946588,0.12549,218.22,218.03,35.81713192]
[1733780946913,20.0,218.16,217.99,35.81713192]
[1733780947086,0.25098,218.13,217.97,35.81713192]
[1733780947288,23.776884,218.08,217.97,35.81713192]
[1733780947611,20.0,218.05,217.97,35.81713192]
[1733780947920,20.0,218.16,218.03,35.81713192]
[1733780948229,20.0,218.16,218.06,35.81713192]
[1733780948387,20.0,218.15,218.02,35.81713192]
[1733780948713,4.5833,218.18,218.08,35.81713192]
[1733780948888,4.5833,218.18,218.06,35.81713192]
[1733780949191,23.776884,218.15,218.02,35.81713192]
[1733780949394,4.5837,218.16,218.04,35.81713192]
[1733780949596,4.5837,218.16,218.06,35.81713192]
[1733780949897,12.2955,218.19,218.08,35.81713192]
[1733780950096,12.2955,218.19,218.1,35.81713192]
[1733780950301,12.2955,218.19,218.08,35.81713192]
[1733780950514,12.2955,218.19,218.05,0.68752174]
[1733780950718,12.2955,218.19,218.12,35.81713192]
[1733780951098,12.2955,218.19,218.08,35.81713192]
[1733780951306,12.2955,218.19,218.1,35.81713192]
[1733780951494,8.0459,218.23,218.16,35.81713192]
[1733780951814,12.406,218.25,218.16,35.81713192]
[1733780952112,7.7762,218.31,218.2,35.81713192]
[1733780952315,4.5808,218.3,218.18,35.81713192]
[1733780952612,4.5808,218.3,218.12,0.81269923]
[1733780952613,7.7762,218.31,218.2,35.81713192]
[1733780952791,12.3569,218.31,218.2,35.81713192]
[1733780953410,13.0961,218.38,218.3,35.81713192]
[1733780953988,13.0961,218.38,218.21,10.68717019]
[1733780953989,13.0961,218.38,218.28,35.81713192]
[1733780954308,13.0961,218.38,218.32,35.81713192]
[1733780954516,13.0961,218.45,218.36,35.81713192]
[1733780954705,13.0961,218.45,218.35,35.81713192]
[1733780955042,4.5779,218.44,218.29,35.81713192]
[1733780955211,4.5779,218.44,218.27,35.81713192]
[1733780955407,10.0,218.43,218.21,35.81713192]
[1733780955713,20.0,218.34,218.17,35.81713192]
[1733780955916,0.12549,218.34,218.17,35.81713192]
[1733780956118,0.12549,218.34,218.12,0.68729966]
[1733780956299,0.12549,218.31,218.13,35.81713192]
[1733780956615,20.0,218.22,218.11,35.81713192]
[1733780956819,20.0,218.22,218.09,35.81713192]
[1733780956989,20.0,218.18,218.05,35.81713192]
[1733780957385,20.0,218.13,218.01,35.81713192]
[1733780957613,20.0,218.09,217.97,35.81713192]
[1733780957816,12.5418,218.16,217.9,13.0503]
[1733780957817,14.52983327,218.16,218.01,35.81713192]
[1733780958013,20.0,218.13,218.03,35.81713192]
[1733780958206,20.0,218.12,217.99,35.81713192]
[1733780958607,12.5418,218.16,217.95,45.81713192]
[1733780958822,20.0,218.13,217.96,0.6877693]
[1733780958993,20.0,218.09,217.93,35.81713192]
[1733780959325,23.902374,218.12,217.88,0.6877693]
[1733780959326,20.0,218.07,217.88,0.6877693]
[1733780959542,20.0,218.02,217.91,35.81713192]
[1733780960116,12.7851,218.05,217.97,35.81713192]
[1733780960319,12.7851,218.05,217.99,35.81713192]
[1733780960528,12.6836,218.12,218.01,35.81713192]
[1733780960703,12.6836,218.12,217.95,35.81713192]
[1733780960704,12.6836,218.12,218.04,35.81713192]
[1733780961028,12.6836,218.12,218.06,35.81713192]
[1733780961194,12.6836,218.12,217.97,0.12549]
[1733780961195,12.6836,218.12,218.08,35.81713192]
[1733780961394,12.6836,218.19,218.1,35.81713192]
[1733780961589,12.6836,218.19,218.14,35.81713192]
[1733780961795,10.0,218.34,217.99,0.12549]
[1733780961796,12.6836,218.25,218.18,35.81713192]
[1733780962022,7.7244,218.31,218.22,35.81713192]
[1733780962230,12.6836,218.32,218.13,10.0]
[1733780962231,12.6836,218.32,218.28,35.81713192]
[1733780962403,12.6836,218.4,218.28,35.81713192]
[1733780962720,12.6836,218.4,218.3,35.81713192]
[1733780963090,12.6836,218.4,218.28,35.81713192]
[1733780963706,12.6836,218.4,218.3,35.81713192]
[1733780964117,12.6836,218.4,218.28,35.81713192]
[1733780964496,12.6836,218.4,218.32,35.81713192]
[1733780964811,12.6836,218.4,218.24,0.12549]
[1733780964812,12.6836,218.4,218.28,35.81713192]
[1733780965198,12.6836,218.4,218.26,35.81713192]
[1733780965393,12.6836,218.4,218.28,35.81713192]
[1733780965613,12.6836,218.4,218.32,35.81713192]
[1733780965807,12.6836,218.4,218.3,35.81713192]
[1733780966410,12.6836,218.4,218.34,35.81713192]
[1733780966609,12.7963,218.47,218.36,35.81713192]
[1733780967018,12.7963,218.47,218.26,10.68677459]
[1733780967019,12.7963,218.47,218.3,35.81713192]
[1733780967229,12.7963,218.47,218.34,35.81713192]
[1733780967402,12.7963,218.47,218.36,35.81713192]
[1733780967603,12.7963,218.47,218.42,35.81713192]
[1733780967995,17.625,218.53,218.42,35.81713192]
[1733780968195,17.625,218.53,218.3,11.4521]
[1733780968196,17.625,218.53,218.4,35.81713192]
[1733780968614,0.12549,218.52,218.36,35.81713192]
[1733780968834,20.12549,218.52,218.32,35.81713192]
[1733780969140,24.027864,218.47,218.28,35.81713192]
[1733780969640,0.12549,218.47,218.32,35.81713192]
[1733780969800,20.0,218.47,218.3,35.81713192]
[1733780969999,20.0,218.43,218.3,35.81713192]
[1733780970610,20.0,218.43,218.21,40.18853501]
[1733780970611,13.0883,218.4,218.26,35.81713192]
[1733780970811,23.902374,218.36,218.22,35.81713192]
[1733780971335,23.902374,218.36,218.21,7.11313501]
[1733780971336,20.0,218.33,218.21,7.11313501]
[1733780971830,0.12549,218.32,218.21,7.11313501]
[1733780972015,20.0,218.29,218.21,7.11313501]
[1733780972220,20.0,218.24,218.21,7.11313501]
[1733780972428,13.0883,218.27,218.21,7.11313501]
[1733780973004,20.0,218.24,218.21,7.11313501]
[1733780973502,4.5816,218.26,218.21,7.11313501]
[1733780973833,20.0,218.49,218.21,7.11313501]
[1733780973834,13.0883,218.33,218.24,35.81713192]
[1733780974006,13.0883,218.4,218.28,35.81713192]
[1733780974202,13.0883,218.4,218.26,35.81713192]
[1733780974541,13.0883,218.4,218.28,35.81713192]
[1733780974717,4.5789,218.39,218.28,35.81713192]
[1733780974901,4.5789,218.39,218.26,35.81713192]
[1733780975104,0.12549,218.38,218.26,35.81713192]
[1733780975302,0.12549,218.38,218.22,35.81713192]
[1733780975508,10.0,218.37,218.21,7.11313501]
[1733780975740,44.027864,218.33,218.21,7.11313501]
[1733780976109,24.027864,218.31,218.21,7.11313501]
[1733780976306,20.0,218.28,218.21,7.11313501]
[1733780976704,17.17949,218.27,218.21,7.11313501]
[1733780976908,20.0,218.24,218.21,7.11313501]
[1733780977126,20.0,218.24,218.13,0.2002]
[1733780977127,24.027864,218.23,218.13,0.2002]
[1733780977611,27.6171,218.24,218.13,0.2002]
[1733780977822,23.902374,218.23,218.13,0.2002]
[1733780978203,20.0,218.2,218.13,0.2002]
[1733780979338,20.0,218.21,218.13,0.2002]
[1733780979711,4.5825,218.22,218.13,36.01733192]
[1733780980123,20.0,218.21,218.13,0.2002]
[1733780980838,20.0,218.21,218.13,36.01733192]
[1733780981217,4.5816,218.26,218.15,35.81713192]
[1733780982516,20.0,218.24,218.15,35.81713192]